Cogmind - Beta 13 *** ADVENTURER MODE // 2024.03.11 @ 06:21:31 Player: Olexender Result: Destroyed by G-34 Mercenary with Small Laser Performance ------------- Evolutions (1) 500 Regions Visited (3) 600 Robots Destroyed (50) 250 Value Destroyed (1117) 1117 Prototype IDs (3) 60 Alien Tech Used (0) 0 Bonus (113) 113 TOTAL SCORE: 2640 Bonus ------- High Alert Combat Kills 28 Follower Combat Kills 85 Cogmind --------- Core Integrity 0/400 Matter 300/300 Energy 133/140 System Corruption 4% Temperature Cool (65) Movement Hovering (180) Ox2 Location -9/Storage Parts ------- > --- POWER (1) -------- Light Deuterium Engine > --- PROPULSION (3) --- Improved Hover Unit > --- UTILITY (3) ------ Medium Storage Unit > --- WEAPON (2) ------- (None) > --- INVENTORY (10) --- Light Deuterium Engine Hover Unit Hover Unit Hover Unit Hover Unit Peak State ------------ > --- POWER ------------ Ion Engine > --- PROPULSION ------- Aluminum Leg Aluminum Leg Aluminum Leg > --- UTILITY ---------- Heat Sink Medium Storage Unit Improved Light Armor Plating > --- WEAPON ----------- Medium Laser Improved Assault Rifle > --- INVENTORY -------- Light Deuterium Engine Light Deuterium Engine Hover Unit Hover Unit Improved Hover Unit Mining Laser [Rating: 14] Favorites ----------- Power Ion Engine Engine Ion Engine Propulsion Aluminum Leg Leg Aluminum Leg Hover Unit Improved Hover Unit Utility Medium Storage Unit Device Heat Sink Storage Medium Storage Unit Protection Utility Shielding Weapon Medium Laser Energy Gun Medium Laser Ballistic Gun Assault Rifle Special Weapon Mining Laser Build | -11 -10 -9 -9 ------- Run | Yrd Mat Mat Sto Slots Evolved 2 | . . 2 . Power . | . . . . Propulsion 1 | . . 1 . Utility 1 | . . 1 . Weapon . | . . . . Parts Attached 34 | 5 13 13 3 Power 5 | 1 1 2 1 Engine 5 | 1 1 2 1 Core . | . . . . Reactor . | . . . . Propulsion 12 | 2 5 4 1 Treads . | . . . . Leg 11 | 2 5 4 . Wheel . | . . . . Hover 1 | . . . 1 Flight . | . . . . Utility 5 | . 2 3 . Device 1 | . . 1 . Storage 1 | . 1 . . Processor . | . . . . Hackware . | . . . . Protection 3 | . 1 2 . Artifact . | . . . . Weapon 12 | 2 5 4 1 Energy Gun 5 | 1 2 1 1 Energy Cannon . | . . . . Ballistic Gun 6 | 1 3 2 . Ballistic Cannon . | . . . . Launcher . | . . . . Special Weapon 1 | . . 1 . Impact Weapon . | . . . . Slashing Weapon . | . . . . Piercing Weapon . | . . . . Special Melee Weapon . | . . . . Unidentified Prototypes 1 | . . 1 . Parts Lost 14 | . . 8 6 Power 2 | . . 1 1 Propulsion 5 | . . 3 2 Utility 3 | . . 2 1 Weapon 4 | . . 2 2 Highest Loss Streak 6 | . . 3 6 To Critical Strikes . | . . . . Average Slot Usage (%) 87 | . 92 88 58 Engine 9 | . 9 9 10 Leg 27 | . 27 28 17 Device 1 | . . 2 . Storage 12 | . 13 11 11 Protection 13 | . 13 15 9 Energy Gun 10 | . 13 10 . Ballistic Gun 10 | . 13 10 . Special Weapon 1 | . . . 8 Naked Turns . | . . . . Heaviest Build 24 | 8 20 24 19 Greatest Support 30 | 20 20 30 20 Greatest Overweight (x) 4 | . 1 1 4 Average Overweight (x) . | . . . . Largest Inventory Capacity 10 | 5 10 10 10 Average Capacity 9 | 5 9 10 10 Most Carried 10 | 5 10 8 8 Average Carried 5 | 2 5 5 6 Final Capacity 10 | 5 10 10 10 Final Carried 7 | 2 5 7 6 Class Distribution -------------------- 85% | Mutant 14% | Scavenger-Mutant Dominant Class ---------------- Mutant | -10/Materials Mutant | -9/Materials Mutant | -9/Storage Resources | -11 -10 -9 -9 ----------- Run | Yrd Mat Mat Sto Matter Collected 894 | 205 238 431 20 Remotely . | . . . . Salvage Created 1377 | . 356 1021 . Parts 104 | . 24 80 . Haulers Intercepted . | . . . . Recyclers Shooed . | . . . . Parts Field Recycled . | . . . . Retrieved Matter . | . . . . Parts Self-Destructed . | . . . . Prevented . | . . . . Kills | -11 -10 -9 -9 ------- Run | Yrd Mat Mat Sto Combat Hostiles Destroyed 41 | . 14 27 . Guns 40 | . 14 26 . Cannons 1 | . . 1 . Classes Destroyed 9 | . 3 6 . Worker 1 | . . 1 . Tunneler 1 | . . 1 . Operator 1 | . . 1 . Watcher 6 | . 2 4 . Swarmer 19 | . 9 10 . Grunt 16 | . 5 11 . Brawler 1 | . . 1 . Duelist 1 | . . 1 . Sentry 4 | . . 4 . Best Kill Streak 6 | . 5 6 . Combat Bots Only 5 | . 5 5 . Max Kills in Single Turn 2 | . 2 2 . Gunslinging 1 | . 1 1 . Exploded . | . . . . Melee . | . . . . Uniques/NPCs Destroyed . | . . . . Combat | -11 -10 -9 -9 -------- Run | Yrd Mat Mat Sto Hostile Shots Fired 297 | . 64 157 76 Missed 79 | . 21 41 17 Damage Taken 2076 | . 294 1165 617 Core 421 | . 19 205 197 Absorbed by Shields . | . . . . Redirected to Shielding 68 | . 2 66 . Ignored by Resistances 638 | . 92 360 186 Core Remaining (%) 96 | 100 92 . . Volleys Fired 139 | . 44 87 8 Largest 2 | . 2 2 1 Hottest 100 | . 70 100 100 Shots Fired 249 | . 88 153 8 Gun 243 | . 88 151 4 Cannon . | . . . . Launcher . | . . . . Special 6 | . . 2 4 Kinetic 129 | . 44 85 . Thermal 120 | . 44 68 8 Explosive . | . . . . Electromagnetic . | . . . . Robot Hit Streak 22 | . 9 22 12 Robot Miss Streak 3 | . 3 3 . Penetration Max . | . . . . Secondary Targets 7 | . 2 5 . Max Gunslinging Chain 1 | . 1 1 . Shots Hit Robots 178 | . 51 119 8 Core Hits 70 | . 22 47 1 Critical Kills 1 | . . 1 . Critical Parts Destroyed 1 | . 1 . . Critical Strikes 10 | . 3 7 . Burn 8 | . 2 6 . Destroy 2 | . 1 1 . Melee Attacks . | . . . . Impact . | . . . . Slashing . | . . . . Piercing . | . . . . Sneak Attacks . | . . . . Combat Hostiles . | . . . . Follow-up Attacks . | . . . . Damage Inflicted 2598 | . 646 1787 165 Guns 2475 | . 646 1763 66 Cannons . | . . . . Explosions . | . . . . Melee . | . . . . Ramming 3 | . . . 3 Kinetic 1475 | . 365 1110 . Thermal 1120 | . 281 677 162 Explosive . | . . . . Electromagnetic . | . . . . Impact . | . . . . Slashing . | . . . . Piercing . | . . . . Highest Corruption 4 | . . . 4 Average Corruption 4 | . . . 4 Corruption Purged . | . . . . Corruption Blocked . | . . . . Overload Shots . | . . . . Overflow Damage . | . . . . Projectiles . | . . . . Explosions . | . . . . Melee . | . . . . Knockbacks . | . . . . Impact . | . . . . Kinetic . | . . . . Secondary . | . . . . Self-Inflicted Damage . | . . . . Shots . | . . . . Rammed . | . . . . Targets Rammed 3 | . . . 3 Kicked 3 | . . . 3 Crushed . | . . . . Highest Temperature 156 | . 150 156 143 Average Temperature 42 | . 39 43 52 Received Heat Transfer 948 | . 96 504 348 Siege Activations . | . . . . Robots Corrupted . | . . . . Combat Hostiles . | . . . . Parts Fried . | . . . . Impact Corruptions . | . . . . Robots Melted . | . . . . Combat Hostiles . | . . . . Parts Melted 4 | . 1 3 . Heat Transferred 3656 | . 939 2418 299 Parts Sabotaged . | . . . . Parts Stolen . | . . . . Parts Stripped . | . . . . Power Chain Reactions . | . . . . Alert | -11 -10 -9 -9 ------- Run | Yrd Mat Mat Sto Peak Influence 547 | . 308 547 194 Initial 84 | . . 18 84 Average 179 | . 88 273 108 Maximum Alert Level 2 | . 1 2 . Low Security (%) 59 | 100 85 30 100 Level 1 34 | . 14 57 . Level 2 6 | . . 12 . Level 3 . | . . . . Level 4 . | . . . . Level 5 . | . . . . High Security . | . . . . Max Security . | . . . . Squads Dispatched 7 | . 1 3 3 Investigation 3 | . 1 2 . Extermination . | . . . . Reinforcement 2 | . . 1 1 Assault 2 | . . . 2 Garrison . | . . . . Intercept . | . . . . Searches Triggered . | . . . . Construction Impeded . | . . . . Haulers Reinforced . | . . . . Active Scanning Responses . | . . . . Cargo Convoy Interrupts . | . . . . Stealth | -11 -10 -9 -9 --------- Run | Yrd Mat Mat Sto Distress Signals 4 | . 1 2 1 Communications Jammed . | . . . . Distress Signals . | . . . . Times Spotted 75 | . 21 40 14 Peak Tracking Total 9 | . 5 8 9 Tactical Retreats 2 | . 1 1 . Traps | -11 -10 -9 -9 ------- Run | Yrd Mat Mat Sto Traps Triggered 4 | . 3 1 . Indirectly . | . . . . Trap Hack Attempts . | . . . . Triggered . | . . . . Disarmed . | . . . . Reprogrammed . | . . . . Reused . | . . . . Traps Extracted . | . . . . Installed . | . . . . Triggered . | . . . . Machines | -11 -10 -9 -9 ---------- Run | Yrd Mat Mat Sto Machines Disabled . | . . . . Max in Single Turn . | . . . . Machines Repaired . | . . . . Machines Dismantled . | . . . . Machines Sabotaged . | . . . . Overloaded Fab Kills . | . . . . Hacking | -11 -10 -9 -9 --------- Run | Yrd Mat Mat Sto Machines Accessed 16 | . 7 6 3 Terminals 11 | . 5 4 2 Fabricators . | . . . . Repair Stations . | . . . . Recycling Units 5 | . 2 2 1 Scanalyzers . | . . . . Garrison Access . | . . . . Total Hacks 40 | . 17 15 8 Successful 23 | . 10 11 2 Failed 17 | . 7 4 6 Catastrophic 2 | . 1 1 . Database Lockouts . | . . . . Manual . | . . . . Terminals 31 | . 13 13 5 Fabricators . | . . . . Repair Stations . | . . . . Recycling Units 9 | . 4 2 3 Scanalyzers . | . . . . Garrison Access . | . . . . Terminal Hacks 18 | . 8 9 1 Record 9 | . 4 5 . Robot Analysis 1 | . 1 . . Prototype ID Bank 1 | . . 1 . Branch Access Points 1 | . . 1 . Emergency Access Points 1 | . . 1 . Unreport Threat 3 | . 2 1 . Dispatch Records 1 | . 1 . . Zone Layout 1 | . . . 1 Fabricator Hacks . | . . . . Repair Station Hacks . | . . . . Recycling Unit Hacks 5 | . 2 2 1 Report Inventory 4 | . 1 2 1 Retrieve Components 1 | . 1 . . Scanalyzer . | . . . . Garrison Access Hacks . | . . . . Unauthorized Hacks . | . . . . Terminals . | . . . . Fabricators . | . . . . Repair Stations . | . . . . Recycling Units . | . . . . Scanalyzers . | . . . . Garrison Access . | . . . . Data Cores Recovered 1 | . . 1 . Used . | . . . . Hacking Detections 11 | . 5 3 3 Full Trace Events 3 | . 1 1 1 Feedback Events . | . . . . Feedback Blocked . | . . . . Robot Schematics Acquired . | . . . . Robots Built . | . . . . Authchips . | . . . . Time . | . . . . Total Robot Build Rating . | . . . . Part Schematics Acquired . | . . . . Parts Built . | . . . . Authchips . | . . . . Time . | . . . . Total Part Build Rating . | . . . . Parts Repaired . | . . . . Time . | . . . . Parts Recycled . | . . . . Recycled Matter . | . . . . Retrieved Matter . | . . . . Retrieved Components 4 | . 4 . . Parts Scanalyzed . | . . . . Part Schematics Acquired . | . . . . Parts Damaged . | . . . . Bothacking | -11 -10 -9 -9 ------------ Run | Yrd Mat Mat Sto Used RIF Installer . | . . . . Robots Hacked . | . . . . Non-combat . | . . . . Combat . | . . . . Robot Hacks Applied . | . . . . Relay Couplers Released . | . . . . Fabnet Peak Effective % . | . . . . Robots Rewired . | . . . . Allies Hacked . | . . . . Hacks Repelled . | . . . . Allies | -11 -10 -9 -9 -------- Run | Yrd Mat Mat Sto Total Allies 2 | . . . 2 Largest Group 2 | . . . 2 Highest-Rated Group 62 | . . . 62 Highest-Rated Ally 31 | . . . 31 Total Orders . | . . . . Ally Attacks 19 | . . . 19 Total Damage 358 | . . . 358 Kills 4 | . . . 4 Allies Corrupted . | . . . . Allies Melted . | . . . . Intel | -11 -10 -9 -9 ------- Run | Yrd Mat Mat Sto Robot Analysis Total 1 | . 1 . . Derelict Logs Recovered . | . . . . Drone Launches . | . . . . Drone Recoveries . | . . . . Exploration | -11 -10 -9 -9 ------------- Run | Yrd Mat Mat Sto Turns Passed 1862 | 39 747 919 157 Spaces Moved 1073 | 32 472 470 99 Core 16 | 14 . . 2 Treads . | . . . . Legs 1057 | 18 472 470 97 Wheels . | . . . . Hover . | . . . . Flight . | . . . . Fastest Speed 50 | 50 120 120 120 Average Speed 125 | 89 121 132 124 Slowest Speed 250 | 120 190 190 250 Overloaded Moves . | . . . . Propulsion Burnouts . | . . . . Robots Hopped . | . . . . Cave-ins Triggered . | . . . . Exploration Rate (%) 34 | 3 89 42 20 Regions Visited 3 Branch Regions 1 Pre-discovered Areas . | . . . . Known Exits Taken 1 | . . 1 . Unknown Exits Taken 2 | 1 1 . . Scrap Searched . | . . . . Spaces Dug . | . . . . Terrain Destroyed . | . . . . Melee . | . . . . Projectile . | . . . . AOE . | . . . . Terrain Rammed . | . . . . Walls Destroyed . | . . . . Machines Disabled . | . . . . Actions | -11 -10 -9 -9 --------- Run | Yrd Mat Mat Sto Total 1328 | 42 558 614 114 Wait 26 | . 6 20 . Move 1070 | 31 471 469 99 Hop . | . . . . Pick Up 41 | 6 17 17 1 Fast Attach 1 | 1 . . . Attach 21 | 4 7 7 3 Detach . | . . . . Swap 12 | . 6 6 . Drop 15 | . 7 8 . Fire 139 | . 44 87 8 Melee . | . . . . Ram . | . . . . Kick 3 | . . . 3 Crush . | . . . . Escape Stasis . | . . . . Rewire . | . . . . Trap . | . . . . Miscellaneous . | . . . . Route ------- -11/Scrapyard -10/Materials (discovered 3 exits: *Mat x2 / [*Min]) -9/Materials (discovered 4 exits: [*Mat] / Min / *Sto x2) -9/Storage History --------- Turn | Location | Event 4 | -11/Scrapyard | Discovered new exit (range 15) 40 | -11/Scrapyard | Entered Materials 234 | -10/Materials | Discovered new exit (range 7) 301 | -10/Materials | Build established: Mutant 443 | -10/Materials | Discovered new exit (range 16) 679 | -10/Materials | Discovered new exit (range 16) 787 | -10/Materials | Entered another Materials area 787 | -9/Materials | Evolved 2 slots: Propulsion x1, Utility x1 1215 | -9/Materials | Lost 3 parts (1p2n) 1376 | -9/Materials | Identified exit to Mines 1376 | -9/Materials | Identified exit to Storage 1433 | -9/Materials | Discovered new exit (range 12) 1624 | -9/Materials | Core integrity fell below 50% 1706 | -9/Materials | Entered Storage 1714 | -9/Storage | Met a pair of Derelict thieves 1854 | -9/Storage | Core integrity fell below 20% 1863 | -9/Storage | Destroyed by G-34 Mercenary with Small Laser Last Messages --------------- 01843_ K-01 Serf collects debris. 01844_ Kicked G-34 Mercenary out of the way. 01845_ K-01 Serf collects debris. 01845_ Ion Engine destroyed. 01845_ System corrupted by crushing effect (+4). 01846_ Acquired Particle Gun. 01846_ K-01 Serf cleans the Compression Vault. 01847_ Aluminum Leg destroyed. 01848_ Imp. Light Armor Plating destroyed. 01848_ K-01 Serf collects debris. 01849_ K-01 Serf cleans the Compression Vault. 01851_ K-01 Serf collects debris. 01854_ K-01 Serf cleans the Compression Vault. 01857_ Particle Gun destroyed. 01857_ K-01 Serf cleans the Compression Vault. 01858_ W-16 Scout distress signal alerts nearby ally. 01859_ Acquired 10 matter. 01861_ K-01 Serf cleans the Compression Vault. 01863_ Acquired 10 matter. Map ----- +----------------------------------------------------+ | ?????????????????????????????????????# #????? | | ?????????????????????????????????????# #????? | | ?????????????????????????????????????# #????? | | ?????????????????????????????????????# #????? | | ?????????????????????????????????????# #????? | | ?????????????????????????????????????# #????? | | ?????????????????????????????????????# #????? | | ?????????????????????????????????????# #????? | | ?????????????????????????????????????# #????? | | ?????????????????????????????????????# #????? | | ?????????????????????????????????????# #????? | | ?????????????????????????????????????# #????? | | ?????????????????????????????????????# #????? | | ?????????????????????????????????????# #????? | | ?????????????????????????????????????# #????? | | ?????????????????????????????????????# #????? | | ?????????????????????????????????????# #????? | | ?????????????????????????????????????# #????? | | ????????????????????????###??????????# #????? | | ???????????????????????? #??????????# #????? | | ???????????????????????? + """ # #????? | | ???????????????????????? # # #????? | | ????????????????????????#g# "T" # #????? | | ????????????????????????# # """ # #????? | | ???????????????????######o############ #????? | | ???????????????????#"""##@#?# ## #????? | | ??????????????????##"Y"##/### ## #????? | | ??????????????????# %g%= # ## #????? | | ??????????????????# %%g%g # """ + #????? | | ?????????????????## !g* # """ ## #????? | | ?????????????????#" [% =w# """ ## #????? | | ?????????????????#T """ """k# ## #????? | | ?????????????????#" """ """*# """ ## #????? | | ?????????????????## """ """ # """ ## #????? | | ??????????????????# # """ ## ##???? | | ??????????????????#######+### ## T#???? | | ????????????????????### ####+##### ##???? | | ????????????? #????? | | ??????????? T #????? | | ???????????? #????? | | ????????????########### ##############????? | | ??????????????????????#######?????????????????? | | ??????????????????????????????????????????????? | | ??????????????????????????????????????????????? | | ??????????????????????????????????????????????? | | ??????????????????????????????????????????????? | | ??????????????????????????????????????????????? | | ??????????????????????????????????????????????? | | ??????????????????????????????????????????????? | | ??????????????????????????????????????????????? | +----------------------------------------------------+ Best States ------------- Heat Dissipation 38 Energy Generation 14 Energy Capacity 265 Matter Stores 300 Matter Capacity 300 Sight Range 16 Terrain Scan Density 10 Armor Coverage 150 Resistance: KI 20 Resistance: TH 20 Resistance: EX 20 Resistance: EM 20 Resistance: I 20 Resistance: S 20 Resistance: P 20 Propulsion Shielding 33 Utility Shielding 33 Evasion (%) 55 Offensive Hacking 10 Item Schematics ----------------- None Robot Schematics ------------------ None Fabricated ------------ Nothing Alien Tech Used ----------------- None Achievements -------------- None Challenges ------------ None Game ------ Seed CobblerSwordSpoofer Manual? 0 Play Time 00:39:45 Cumulative 227.1 hours Start 2024.03.04 @ 20:09:51 End 2024.03.11 @ 06:21:31 Sessions 7 Manual Loads 0 Difficulty Adventurer Special Mode None Game No. 168 Rogue 0 Adventurer 105 Explorer 63 Win Type - Total 0 Types 0/0/0/0/0/0/0/0/0 Lore% 50 Gallery% 65 Achievement% 51 Wizard Run 0 Options --------- Layout 2 ASCII 0 Keyboard 0 Movement Mouse Keybinds 0 Fullscreen 1 Font 32/SmallcapsGlow Map View 50x44 Zoom Use 0% Tactical HUD 1 Map Filters NONE Filters NONE Steam 1 RUN: fee60413-b588-4aa0-b7e3-50f9468cba8e